bitfinex/quotes_BTCUSD_20240629
["timestamp","ask_amount","ask_price","bid_price","bid_amount"]
[1719633615102,0.00084,60880.0,60879.0,0.40304615]
[1719633617524,0.00084,60880.0,60879.0,0.37315775]
[1719633617877,0.11384,60880.0,60879.0,0.40304615]
[1719633620937,0.11384,60880.0,60879.0,0.22454615]
[1719633625226,0.11384,60880.0,60879.0,0.39954615]
[1719633630475,0.11384,60880.0,60879.0,0.19465775]
[1719633630688,0.849229,60880.0,60879.0,0.20454615]
[1719633630891,0.849229,60880.0,60879.0,0.22454615]
[1719633631105,0.849229,60880.0,60879.0,0.19465775]
[1719633631531,0.8934221,60880.0,60879.0,0.19465775]
[1719633631751,0.849229,60880.0,60879.0,0.22454615]
[1719633631956,0.98704633,60880.0,60879.0,0.22454615]
[1719633635046,0.943029,60880.0,60879.0,0.22454615]
[1719633635214,0.98708488,60880.0,60879.0,0.22454615]
[1719633638141,0.943029,60880.0,60879.0,0.22454615]
[1719633638343,0.98683981,60880.0,60879.0,0.22454615]
[1719633638585,0.943029,60880.0,60879.0,0.22454615]
[1719633638827,0.98683981,60880.0,60879.0,0.22454615]
[1719633640479,0.91965781,60880.0,60879.0,0.22454615]
[1719633640678,0.90027981,60880.0,60879.0,0.22454615]
[1719633641075,0.90027981,60880.0,60879.0,0.30394615]
[1719633641282,0.90030702,60880.0,60879.0,0.30394615]
[1719633643103,0.90033917,60880.0,60879.0,0.30394615]
[1719633643309,0.60833917,60880.0,60879.0,0.30394615]
[1719633643512,0.54529417,60880.0,60879.0,0.39954615]
[1719633643714,0.53438117,60880.0,60879.0,0.39954615]
[1719633644500,0.490511,60880.0,60879.0,0.39954615]
[1719633650175,0.49043533,60880.0,60879.0,0.39954615]
[1719633653573,0.49043533,60880.0,60879.0,0.22454615]
[1719633653772,0.49043533,60880.0,60879.0,0.19465775]
[1719633654179,1.75405233,60880.0,60879.0,0.22454615]
[1719633655794,1.79733554,60880.0,60879.0,0.22454615]
[1719633657418,1.7964036,60880.0,60879.0,0.22454615]
[1719633657976,1.7964036,60880.0,60879.0,0.19465775]
[1719633658383,1.46646071,60880.0,60879.0,0.19465775]
[1719633658583,1.47446127,60880.0,60879.0,0.19465775]
[1719633659218,1.20335027,60880.0,60879.0,0.19465775]
[1719633659421,1.44657009,60880.0,60879.0,0.19465775]
[1719633659629,1.44657009,60880.0,60879.0,0.22454615]
[1719633660652,1.32807563,60880.0,60879.0,0.22454615]
[1719633660869,1.46435877,60880.0,60879.0,0.19465775]
[1719633661068,1.22110314,60880.0,60879.0,0.19465775]
[1719633661317,0.78436677,60880.0,60879.0,0.36815775]
[1719633661527,0.78436677,60880.0,60879.0,0.39804615]
[1719633661528,0.63491114,60880.0,60879.0,0.39804615]
[1719633661959,0.60370195,60880.0,60879.0,0.39804615]
[1719633662366,0.84695758,60880.0,60879.0,0.39804615]
[1719633663412,0.60370195,60880.0,60879.0,0.39804615]
[1719633663619,0.83572307,60880.0,60879.0,0.39804615]
[1719633664193,0.83572307,60880.0,60879.0,0.06220717]
[1719633664637,0.592428,60880.0,60879.0,0.06220717]
[1719633665248,0.592428,60880.0,60879.0,0.03231877]
[1719633666682,0.593268,60880.0,60879.0,0.03231877]
[1719633666859,0.593268,60880.0,60879.0,0.06220717]
[1719633667060,0.593268,60880.0,60879.0,0.03231877]
[1719633667422,0.593268,60880.0,60879.0,0.04220717]
[1719633668975,0.593268,60880.0,60879.0,0.06220717]
[1719633669186,0.83653969,60880.0,60879.0,0.06220717]
[1719633669399,0.83653664,60880.0,60879.0,0.06220717]
[1719633669535,0.63342058,60880.0,60879.0,0.04220717]
[1719633670751,0.593268,60880.0,60879.0,0.04220717]
[1719633673402,0.83652434,60880.0,60879.0,0.04220717]
[1719633673948,0.87617959,60880.0,60879.0,0.04220717]
[1719633674155,3.04811759,60880.0,60879.0,0.04220717]
[1719633675359,2.80486125,60880.0,60879.0,0.04220717]
[1719633675973,2.80485036,60880.0,60879.0,0.04220717]
[1719633676268,2.765206,60880.0,60879.0,0.04220717]
[1719633676468,2.80485035,60880.0,60879.0,0.04220717]
[1719633677409,3.04810052,60880.0,60879.0,0.04220717]
[1719633677616,2.98142052,60880.0,60879.0,0.04220717]
[1719633677816,2.73817035,60880.0,60879.0,0.04220717]
[1719633678219,2.9814175,60880.0,60879.0,0.04220717]
[1719633678991,2.738223,60880.0,60879.0,0.04220717]
[1719633679167,2.98147015,60880.0,60879.0,0.03231877]
[1719633679404,2.98147015,60880.0,60879.0,0.04220717]
[1719633679636,2.91568415,60880.0,60879.0,0.04220717]
[1719633682183,2.63274,60880.0,60879.0,0.04220717]
[1719633682396,2.91572069,60880.0,60879.0,0.04220717]
[1719633682597,2.7724819,60880.0,60879.0,0.008124]
[1719633682799,2.7724819,60880.0,60879.0,0.00804569]
[1719633683836,2.7724819,60880.0,60879.0,0.01204569]
[1719633684679,2.7724819,60880.0,60879.0,0.005124]
[1719633685031,2.7734819,60880.0,60879.0,0.010124]
[1719633685351,2.73374,60880.0,60879.0,0.010124]
[1719633685528,2.77339279,60880.0,60879.0,0.010124]
[1719633687164,2.92752807,60880.0,60879.0,0.010124]
[1719633687546,2.77339279,60880.0,60879.0,0.010124]
[1719633688386,2.94919802,60880.0,60879.0,0.010124]
[1719633688586,2.90954523,60880.0,60879.0,0.010124]
[1719633688787,2.94857693,60880.0,60879.0,0.010124]
[1719633688987,2.90954523,60880.0,60879.0,0.010124]
[1719633689211,2.94857893,60880.0,60879.0,0.001124]
[1719633689374,2.94757893,60880.0,60879.0,0.001124]
[1719633689583,2.95257893,60880.0,60879.0,0.001124]
[1719633689779,3.11491264,60880.0,60879.0,0.001124]
[1719633690078,3.01811264,60880.0,60879.0,0.001124]
[1719633690276,3.11191264,60880.0,60879.0,0.002124]
[1719633690477,3.12191264,60880.0,60879.0,0.002124]
[1719633690883,3.11991264,60880.0,60879.0,0.002124]
[1719633691772,3.12075155,60880.0,60879.0,0.002124]
[1719633692267,3.12975155,60880.0,60879.0,0.002124]
[1719633692972,0.59165155,60880.0,60879.0,0.002124]
[1719633693173,3.57794784,60880.0,60879.0,0.002124]
[1719633693379,3.54466323,60880.0,60879.0,0.002124]
[1719633694579,3.58453584,60880.0,60879.0,0.002124]
[1719633695012,3.54466323,60880.0,60879.0,0.002124]
[1719633695219,3.58453271,60880.0,60879.0,0.002124]
[1719633695960,3.74686642,60880.0,60879.0,0.002124]
[1719633696160,3.74686642,60880.0,60872.0,0.000924]
[1719633696447,3.24863,60879.0,60872.0,0.000924]
[1719633696619,0.0938,60873.0,60872.0,0.000924]
[1719633696794,3.14863,60873.0,60872.0,0.000924]
[1719633696972,0.1938,60873.0,60872.0,0.000924]
[1719633697994,0.23366948,60873.0,60872.0,0.000924]
[1719633698179,0.1938,60873.0,60872.0,0.000924]
[1719633698374,0.0938,60873.0,60872.0,0.000924]
[1719633698695,0.1938,60873.0,60872.0,0.000924]
[1719633698908,3.34243,60873.0,60872.0,0.000924]
[1719633699107,3.34343,60873.0,60872.0,0.000924]
[1719633699405,3.24963,60873.0,60872.0,0.0108124]
[1719633699619,3.62535303,60873.0,60872.0,0.0108124]
[1719633700989,3.3825211,60873.0,60872.0,0.0108124]
[1719633701448,3.38254635,60873.0,60872.0,0.0108124]
[1719633701852,3.38269328,60873.0,60872.0,0.0108124]
[1719633702413,3.62548612,60873.0,60872.0,0.000924]
[1719633702707,3.38269328,60873.0,60872.0,0.000924]
[1719633703340,3.38264164,60873.0,60872.0,0.000924]
[1719633704370,3.38264632,60873.0,60872.0,0.0108124]
[1719633704585,3.38264731,60873.0,60872.0,0.0108124]
[1719633704986,3.62541926,60873.0,60872.0,0.0108124]
[1719633705160,3.38264731,60873.0,60872.0,0.0108124]
[1719633705534,3.62541356,60873.0,60872.0,0.0108124]
[1719633705738,3.38264731,60873.0,60872.0,0.0108124]
[1719633705960,3.62541241,60873.0,60872.0,0.000924]
[1719633707650,3.5861853,60873.0,60872.0,0.000924]
[1719633707873,3.62591751,60873.0,60872.0,0.000924]
[1719633708244,3.65458845,60873.0,60872.0,0.000924]
[1719633710117,3.41183315,60873.0,60872.0,0.000924]
[1719633710318,0.26253713,60873.0,60872.0,0.00087268]
[1719633710944,3.37210094,60873.0,60872.0,0.01076108]
[1719633711470,3.41114343,60873.0,60872.0,0.01076108]
[1719633711612,3.41114343,60873.0,60872.0,0.03076108]
[1719633711961,3.65390418,60873.0,60872.0,0.03076108]
[1719633712668,3.68315614,60873.0,60872.0,0.03076108]
[1719633712903,3.42484946,60873.0,60872.0,0.03076108]
[1719633713072,3.5248502,60873.0,60872.0,0.03076108]
[1719633713513,3.6186502,60873.0,60872.0,0.03076108]
[1719633713747,3.37588945,60873.0,60872.0,0.03076108]
[1719633713864,3.37590257,60873.0,60872.0,0.03076108]
[1719633714064,3.33684696,60873.0,60872.0,0.03076108]
[1719633714270,3.61870799,60873.0,60872.0,0.03076108]
[1719633714857,3.37594709,60873.0,60872.0,0.01076108]
[1719633715041,3.61870799,60873.0,60872.0,0.01076108]
[1719633715821,3.58945603,60873.0,60872.0,0.01076108]
[1719633716613,3.58945603,60873.0,60872.0,0.03076108]
[1719633717012,3.34669513,60873.0,60872.0,0.12846108]
[1719633717212,3.55039868,60873.0,60872.0,0.12846108]
[1719633717470,3.55039868,60873.0,60872.0,0.10846108]
[1719633717471,3.34690652,60873.0,60872.0,0.10846108]
[1719633717704,3.34690652,60873.0,60872.0,0.09857268]
[1719633719888,3.34690652,60873.0,60872.0,0.12846108]
[1719633720500,3.34666355,60873.0,60872.0,0.12846108]
[1719633720852,3.34666257,60873.0,60872.0,0.12846108]
[1719633721124,3.58951462,60873.0,60872.0,0.12846108]
[1719633721329,3.34666257,60873.0,60872.0,0.12846108]
[1719633721695,3.34666257,60873.0,60872.0,0.10846108]
[1719633721898,3.5851525,60873.0,60872.0,0.12846108]
[1719633722122,3.34227636,60873.0,60872.0,0.12846108]
[1719633722329,3.34227636,60873.0,60872.0,0.20576108]
[1719633724533,0.22848136,60873.0,60872.0,0.20576108]
[1719633724738,3.34227636,60873.0,60872.0,0.20576108]
[1719633725170,3.34227636,60873.0,60872.0,0.17587268]
[1719633725402,3.34227636,60873.0,60872.0,0.20576108]
[1719633725962,3.34214841,60873.0,60872.0,0.20576108]
[1719633728171,3.34214841,60873.0,60872.0,0.20576108]
[1719633728574,3.34214841,60873.0,60872.0,0.18576108]
[1719633728935,3.34214841,60873.0,60872.0,0.20576108]
[1719633729144,3.30320879,60873.0,60872.0,0.20576108]
[1719633729301,3.34209546,60873.0,60872.0,0.20576108]
[1719633730286,3.34209546,60873.0,60872.0,0.00087268]
[1719633730656,3.34209546,60873.0,60872.0,0.03076108]
[1719633732000,3.34293546,60873.0,60872.0,0.03076108]
[1719633732407,3.34285964,60873.0,60872.0,0.03076108]
[1719633733816,3.34285964,60873.0,60872.0,0.00087268]
[1719633734687,3.34285964,60873.0,60872.0,0.03076108]
[1719633735653,3.34304118,60873.0,60872.0,0.03076108]
[1719633736025,3.34304118,60873.0,60872.0,0.12936108]
[1719633736607,3.34304118,60873.0,60872.0,0.12928353]
[1719633737374,3.34304118,60873.0,60872.0,0.20188353]
[1719633737578,0.69839118,60873.0,60872.0,0.21188353]
[1719633737795,0.55762518,60873.0,60872.0,0.20188353]
[1719633737995,0.85578931,60873.0,60872.0,0.20188353]
[1719633738192,0.61243279,60873.0,60872.0,0.21188353]
[1719633738395,0.61243279,60873.0,60872.0,0.20188353]
[1719633738702,0.65126491,60873.0,60872.0,0.20188353]
[1719633739129,0.65226491,60873.0,60872.0,0.21588353]
[1719633739332,0.65226491,60873.0,60872.0,0.20588353]
[1719633739571,0.65226491,60873.0,60872.0,0.20488353]
[1719633739777,0.65226491,60873.0,60872.0,0.20888353]
[1719633739974,0.65326491,60873.0,60872.0,0.20888353]
[1719633741948,0.61443279,60873.0,60872.0,0.20888353]
[1719633742140,0.65339607,60873.0,60872.0,0.20888353]
[1719633744800,0.65339607,60873.0,60872.0,0.17899513]
[1719633745119,0.65328624,60873.0,60872.0,0.20888353]
[1719633745326,0.65328624,60873.0,60872.0,0.17899513]
[1719633745545,0.61443279,60873.0,60872.0,0.17899513]
[1719633745753,0.65329351,60873.0,60872.0,0.20888353]
[1719633748122,0.61443279,60873.0,60872.0,0.20888353]
[1719633748323,0.65338588,60873.0,60872.0,0.20888353]
[1719633748530,0.65338588,60873.0,60872.0,0.17899513]
[1719633748745,0.65338588,60873.0,60872.0,0.20888353]
[1719633748969,0.65338588,60873.0,60872.0,0.17899513]
[1719633749781,0.65338588,60873.0,60872.0,0.21888353]
[1719633750020,0.23120688,60873.0,60872.0,0.21888353]
[1719633750610,1.55322488,60873.0,60872.0,0.21888353]
[1719633750807,0.23120688,60873.0,60872.0,0.21888353]
[1719633751023,1.51427179,60873.0,60872.0,0.17899513]
[1719633751383,1.51427179,60873.0,60872.0,0.21888353]
[1719633751774,1.55363767,60873.0,60872.0,0.20888353]
[1719633753114,1.55363767,60873.0,60872.0,0.17899513]
[1719633753562,1.55363767,60873.0,60872.0,0.20888353]
[1719633754791,1.55353869,60873.0,60872.0,0.20888353]
[1719633755142,1.55353892,60873.0,60872.0,0.20888353]
[1719633757197,1.55346041,60873.0,60872.0,0.20888353]
[1719633757778,1.51419328,60873.0,60872.0,0.20888353]
[1719633757978,1.55332061,60873.0,60872.0,0.20888353]
[1719633759044,1.55332061,60873.0,60872.0,0.21888353]
[1719633759448,1.55332061,60873.0,60872.0,0.20888353]
[1719633759898,1.55332061,60873.0,60872.0,0.21888353]
[1719633761066,1.55349187,60873.0,60872.0,0.21888353]
[1719633762622,1.55349187,60873.0,60872.0,0.20888353]
[1719633763529,1.5532789,60873.0,60872.0,0.20888353]
[1719633763733,1.4594789,60873.0,60872.0,0.20888353]
[1719633763939,1.4670799,60873.0,60872.0,0.21888353]
[1719633764362,1.25545228,60873.0,60872.0,0.21888353]
[1719633764535,1.29453352,60873.0,60872.0,0.21888353]
[1719633764691,1.23773352,60873.0,60872.0,0.21888353]
[1719633764890,1.23849993,60873.0,60872.0,0.21888353]
[1719633765316,1.01802193,60873.0,60872.0,0.17899513]
[1719633765519,0.98195693,60873.0,60872.0,0.21888353]
[1719633767271,0.71667004,60873.0,60872.0,0.21888353]
[1719633767474,0.84730239,60873.0,60872.0,0.21888353]
[1719633767856,0.84730239,60873.0,60872.0,0.20888353]
[1719633768058,0.84730239,60873.0,60872.0,0.21888353]
[1719633769256,0.29387239,60873.0,60872.0,0.39002151]
[1719633769457,0.29387239,60873.0,60872.0,0.42990991]
[1719633769458,0.257862,60873.0,60872.0,0.42990991]
[1719633770232,0.1,60873.0,60872.0,0.42990991]
[1719633770543,0.0938,60878.0,60877.0,0.2157884]
[1719633770723,1.133158,60878.0,60877.0,0.2157884]
[1719633770898,1.233158,60878.0,60877.0,0.2157884]
[1719633771100,1.039358,60878.0,60877.0,0.25924939]
[1719633771343,0.336855,60878.0,60877.0,0.2157884]
[1719633771543,0.619603,60879.0,60878.0,0.2157884]
[1719633771696,0.09464,60880.0,60879.0,0.2157884]
[1719633772116,0.935213,60880.0,60879.0,0.2157884]
[1719633772317,0.99459192,60880.0,60879.0,0.2157884]
[1719633772528,1.09459192,60880.0,60879.0,0.2157884]
[1719633773486,0.98061892,60880.0,60879.0,0.2157884]
[1719633773908,0.9800819,60880.0,60879.0,0.2157884]
[1719633774325,0.943694,60880.0,60879.0,0.2157884]
[1719633774524,0.9810819,60880.0,60879.0,0.2157884]
[1719633777105,0.944694,60880.0,60879.0,0.2157884]
[1719633777330,0.98145524,60880.0,60879.0,0.2157884]
[1719633778018,0.88765524,60880.0,60879.0,0.2157884]
[1719633778218,0.79560224,60880.0,60879.0,0.40232215]
[1719633778772,0.79460224,60880.0,60879.0,0.40232215]
[1719633779009,0.79360224,60880.0,60879.0,0.40232215]
[1719633780076,0.79460224,60880.0,60879.0,0.40632215]
[1719633780279,0.757841,60880.0,60879.0,0.40632215]
[1719633780517,0.79447258,60880.0,60879.0,0.40632215]
[1719633780918,0.79547258,60880.0,60879.0,0.41132215]
[1719633782834,0.79547345,60880.0,60879.0,0.41132215]
[1719633783247,0.79547346,60880.0,60879.0,0.41132215]
[1719633785866,0.834387,60880.0,60879.0,0.41132215]
[1719633786019,0.87137544,60880.0,60879.0,0.41132215]
[1719633789024,0.834387,60880.0,60879.0,0.41132215]
[1719633789223,0.87169641,60880.0,60879.0,0.41132215]
[1719633790203,0.80589641,60880.0,60879.0,0.41132215]
[1719633792063,0.30315641,60880.0,60879.0,0.41132215]
[1719633792270,0.265847,60880.0,60879.0,0.41132215]
[1719633793064,0.264847,60880.0,60879.0,0.40732215]
[1719633793266,0.263847,60880.0,60879.0,0.40632215]
[1719633793436,0.264847,60880.0,60879.0,0.40632215]
[1719633794238,0.265847,60880.0,60879.0,0.40132215]
[1719633794383,0.265847,60880.0,60879.0,0.41132215]
[1719633794384,0.359647,60880.0,60879.0,0.41132215]
[1719633794589,0.359647,60880.0,60879.0,0.37143375]
[1719633795314,0.359647,60880.0,60879.0,0.41132215]
[1719633797140,0.359647,60880.0,60879.0,0.37143375]
[1719633797336,0.359647,60880.0,60879.0,0.40132215]
[1719633798084,0.359647,60880.0,60879.0,0.37143375]
[1719633798301,0.359647,60880.0,60879.0,0.32562215]
[1719633798522,0.359647,60880.0,60879.0,0.1390884]
[1719633798723,0.359647,60880.0,60879.0,0.0388884]
[1719633802431,0.358647,60880.0,60879.0,0.0348884]
[1719633802629,0.264847,60880.0,60879.0,0.0348884]
[1719633802793,0.265847,60880.0,60879.0,0.2084884]
[1719633803184,0.358647,60880.0,60879.0,0.1736]
[1719633803354,0.359647,60880.0,60879.0,0.2084884]
[1719633803769,0.359647,60880.0,60879.0,0.1786]
[1719633803925,0.359647,60880.0,60879.0,0.2084884]
[1719633804276,0.265847,60880.0,60879.0,0.40502215]
[1719633804606,0.359647,60880.0,60879.0,0.40502215]
[1719633806197,0.359647,60880.0,60879.0,0.39502215]
[1719633808644,0.359647,60880.0,60879.0,0.0388884]
[1719633810245,0.60269233,60880.0,60879.0,0.0388884]
[1719633811556,0.60277568,60880.0,60879.0,0.0388884]
[1719633811890,0.60177568,60880.0,60879.0,0.0348884]
[1719633812697,0.60177568,60880.0,60879.0,0.0338884]
[1719633813033,0.60177568,60880.0,60879.0,0.0388884]
[1719633813034,0.60277568,60880.0,60879.0,0.0388884]
[1719633813211,0.359647,60880.0,60879.0,0.0388884]
[1719633814190,0.359647,60880.0,60879.0,0.009]
[1719633815222,0.358647,60880.0,60879.0,0.005]
[1719633815630,0.358647,60880.0,60879.0,0.009]
[1719633816702,0.357647,60880.0,60879.0,0.004]
[1719633817102,0.263847,60880.0,60879.0,0.0338884]
[1719633817281,0.357647,60880.0,60879.0,0.0138884]
[1719633817491,0.357647,60880.0,60879.0,0.1331884]
[1719633817760,0.357647,60880.0,60879.0,0.1033]
[1719633817961,0.357647,60880.0,60879.0,0.1331884]
[1719633818509,0.357647,60880.0,60879.0,0.1033]
[1719633818966,0.357647,60880.0,60879.0,0.1331884]
[1719633820007,0.19464,60880.0,60879.0,0.1331884]
[1719633820231,2.522713,60880.0,60879.0,0.1331884]
[1719633820405,0.19464,60880.0,60879.0,0.1331884]
[1719633821030,2.622713,60880.0,60879.0,0.1331884]
[1719633822242,2.67290309,60880.0,60879.0,0.1331884]
[1719633823636,2.67266234,60880.0,60879.0,0.1131884]
[1719633824439,2.67266716,60880.0,60879.0,0.1131884]
[1719633825492,2.35698335,60880.0,60879.0,0.1131884]
[1719633825692,2.45078335,60880.0,60879.0,0.1131884]
[1719633825894,2.45078335,60880.0,60879.0,0.1033]
[1719633826068,2.45078335,60880.0,60879.0,0.1131884]
[1719633827500,2.40082919,60880.0,60879.0,0.1131884]
[1719633827703,2.55079997,60880.0,60879.0,0.008]
[1719633827886,2.50082919,60880.0,60879.0,0.008]
[1719633828084,2.55081413,60880.0,60879.0,0.008]
[1719633828490,2.55165413,60880.0,60879.0,0.008]
[1719633830699,2.55192927,60880.0,60879.0,0.008]
[1719633832227,2.50166919,60880.0,60879.0,0.008]
[1719633832425,2.55185017,60880.0,60879.0,0.008]
[1719633834030,2.55164726,60880.0,60879.0,0.008]
[1719633835029,2.55164726,60880.0,60879.0,0.0178884]
[1719633835223,2.55164726,60880.0,60879.0,0.008]
[1719633835893,2.55164726,60880.0,60879.0,0.0178884]
[1719633837271,2.55192256,60880.0,60879.0,0.0178884]
[1719633837582,2.55192256,60880.0,60879.0,0.01782612]
[1719633838529,2.55192256,60880.0,60879.0,0.11262612]
[1719633838906,2.50166919,60880.0,60879.0,0.11262612]
[1719633839105,2.5518851,60880.0,60879.0,0.11262612]
[1719633839833,2.05834391,60880.0,60879.0,0.21112612]
[1719633840595,2.05828235,60880.0,60879.0,0.21112612]
[1719633841015,2.05799235,60880.0,60879.0,0.21112612]
[1719633843004,2.05809187,60880.0,60879.0,0.21112612]
[1719633843635,2.05809209,60880.0,60879.0,0.21112612]
[1719633844559,2.05804819,60880.0,60879.0,0.21112612]
[1719633846217,2.008128,60880.0,60879.0,0.21112612]
[1719633846449,2.05804276,60880.0,60879.0,0.21112612]
[1719633848920,0.24455476,60880.0,60879.0,0.21112612]
[1719633849324,2.814096,60880.0,60879.0,0.21112612]
[1719633849522,0.19464,60880.0,60879.0,0.21112612]
[1719633849723,0.09464,60880.0,60879.0,0.21112612]
[1719633850244,2.546058,60880.0,60879.0,0.21112612]
[1719633850385,0.19464,60880.0,60879.0,0.21112612]
[1719633850585,2.646058,60880.0,60879.0,0.21112612]
[1719633850786,2.50127577,60880.0,60879.0,0.21112612]
[1719633851015,2.20410877,60880.0,60879.0,0.21112612]
[1719633851394,2.19077277,60880.0,60879.0,0.21112612]
[1719633851873,2.43391375,60880.0,60879.0,0.21112612]
[1719633852645,2.38409365,60880.0,60879.0,0.21112612]
[1719633852853,2.43350563,60880.0,60879.0,0.21112612]
[1719633853185,2.53350563,60880.0,60879.0,0.21112612]
[1719633853315,2.35172363,60880.0,60879.0,0.21112612]
[1719633854744,2.10854498,60880.0,60879.0,0.21112612]
[1719633855826,2.059133,60880.0,60879.0,0.21112612]
[1719633856020,2.10866535,60880.0,60879.0,0.21112612]
[1719633858079,2.10866535,60880.0,60879.0,0.01782612]
[1719633859105,2.1087159,60880.0,60879.0,0.01782612]
[1719633859733,2.1087159,60880.0,60879.0,0.00793772]
[1719633860566,2.1087159,60880.0,60879.0,0.00886172]
[1719633860774,2.1095559,60880.0,60879.0,0.00886172]
[1719633862365,2.059973,60880.0,60879.0,0.00886172]
[1719633862564,2.10962198,60880.0,60879.0,0.00886172]
[1719633862777,2.1096219,60880.0,60879.0,0.00886172]
[1719633865474,2.1096219,60880.0,60879.0,0.00878575]
[1719633868616,2.10942189,60880.0,60879.0,0.00878575]
[1719633869415,2.10942189,60880.0,60879.0,0.01867415]
[1719633872030,2.10971139,60880.0,60879.0,0.01867415]
[1719633872436,2.10959511,60880.0,60879.0,0.01867415]
[1719633873109,2.10959511,60880.0,60879.0,0.03867415]
[1719633873709,2.01579511,60880.0,60879.0,0.03867415]
[1719633873877,2.10959511,60880.0,60879.0,0.03867415]
[1719633874089,2.10959511,60880.0,60879.0,0.00878575]
[1719633874293,2.10959511,60880.0,60879.0,0.01867415]
[1719633875144,2.059973,60880.0,60879.0,0.01867415]
[1719633875314,2.1101631,60880.0,60879.0,0.00878575]
[1719633875765,2.1101631,60880.0,60879.0,0.03867415]
[1719633878219,2.11051332,60880.0,60879.0,0.03867415]
[1719633879825,2.11051332,60880.0,60879.0,0.03862115]
[1719633881507,2.11056195,60880.0,60879.0,0.10203275]
[1719633881677,2.11056195,60880.0,60879.0,0.13192115]
[1719633881984,2.01676195,60880.0,60879.0,0.13192115]
[1719633882159,2.01676195,60880.0,60879.0,0.10203275]
[1719633882160,2.11056195,60880.0,60879.0,0.10203275]
[1719633882360,2.11056195,60880.0,60879.0,0.20322115]
[1719633883822,2.1111314,60880.0,60879.0,0.20322115]
[1719633884477,0.24567842,60880.0,60879.0,0.20322115]
[1719633884675,0.19464,60880.0,60879.0,0.20322115]
[1719633884887,0.09464,60880.0,60879.0,0.20322115]
[1719633885033,0.19464,60880.0,60879.0,0.20322115]
[1719633885651,3.045601,60880.0,60879.0,0.20322115]
[1719633886254,3.09663881,60880.0,60879.0,0.20322115]
[1719633887890,3.09655635,60880.0,60879.0,0.20322115]
[1719633889196,3.09655635,60880.0,60879.0,0.19822115]
[1719633891173,3.09652238,60880.0,60879.0,0.19822115]
[1719633891578,3.09654362,60880.0,60879.0,0.19822115]
[1719633894243,3.09653572,60880.0,60879.0,0.19822115]
[1719633897180,3.09653572,60880.0,60879.0,0.17822115]
[1719633897612,3.09672736,60880.0,60879.0,0.19822115]
[1719633900809,3.09672736,60880.0,60879.0,0.17822115]
[1719633901208,3.09643945,60880.0,60879.0,0.17822115]
[1719633901747,3.09643945,60880.0,60879.0,0.16833275]
[1719633901995,3.09468758,60880.0,60879.0,0.17822115]
[1719633902201,3.09559945,60880.0,60879.0,0.17822115]
[1719633903331,3.09593405,60880.0,60879.0,0.19822115]
[1719633904711,3.09593405,60880.0,60879.0,0.16833275]
[1719633904712,3.00213405,60880.0,60879.0,0.16833275]
[1719633904912,3.09593405,60880.0,60879.0,0.19822115]
[1719633905877,3.09593405,60880.0,60879.0,0.16833275]
[1719633906275,3.09593405,60880.0,60879.0,0.19822115]
[1719633906510,3.09591754,60880.0,60879.0,0.19822115]
[1719633907661,3.09591754,60880.0,60879.0,0.16833275]
[1719633908134,2.83041254,60880.0,60879.0,0.16833275]
[1719633908281,2.70580054,60880.0,60879.0,0.16833275]
[1719633908471,2.70580054,60880.0,60879.0,0.19822115]
[1719633908673,2.70580054,60880.0,60879.0,0.17822115]
[1719633908931,2.70580054,60880.0,60879.0,0.19822115]
[1719633909484,2.654644,60880.0,60879.0,0.19822115]
[1719633909724,2.70498265,60880.0,60879.0,0.17822115]
[1719633909899,2.79878265,60880.0,60879.0,0.19822115]
[1719633910262,2.79878265,60880.0,60879.0,0.16833275]
[1719633910443,2.89878265,60880.0,60879.0,0.17822115]
[1719633911261,2.79878265,60880.0,60879.0,0.17822115]
[1719633912749,2.748444,60880.0,60879.0,0.17822115]
[1719633912950,2.79921072,60880.0,60879.0,0.17822115]
[1719633913132,2.748444,60880.0,60879.0,0.17822115]
[1719633913331,2.79921067,60880.0,60879.0,0.17822115]
[1719633914177,2.79921067,60880.0,60879.0,0.16833275]
[1719633914437,2.79921067,60880.0,60879.0,0.01362115]
[1719633914719,2.79921067,60880.0,60879.0,0.00373275]
[1719633915961,2.79914183,60880.0,60879.0,0.00373275]
[1719633916816,0.14449783,60880.0,60879.0,0.00373275]
[1719633917015,2.92375383,60880.0,60879.0,0.00373275]
[1719633917511,2.92375383,60880.0,60878.0,0.09822115]
[1719633917734,2.779256,60879.0,60878.0,0.09822115]
[1719633918719,2.82995383,60879.0,60878.0,0.10222115]
[1719633919161,2.82991259,60879.0,60878.0,0.09822115]
[1719633919362,2.82991259,60879.0,60878.0,0.10222115]
[1719633919564,2.83091259,60879.0,60878.0,0.10222115]
[1719633919740,2.83091259,60879.0,60878.0,0.10322115]
[1719633920378,2.83091259,60879.0,60878.0,0.10222115]
[1719633921187,2.83191259,60879.0,60878.0,0.10322115]
[1719633922491,2.83171454,60879.0,60878.0,0.10322115]
[1719633925585,2.83193411,60879.0,60878.0,0.10322115]
[1719633926111,2.83193413,60879.0,60878.0,0.10322115]
[1719633926720,2.83193413,60879.0,60878.0,0.12322115]
[1719633926929,2.83193413,60879.0,60878.0,0.12414515]
[1719633927292,2.83277413,60879.0,60878.0,0.12414515]
[1719633927487,2.83277413,60879.0,60878.0,0.12422236]
[1719633928751,2.782096,60879.0,60878.0,0.12422236]
[1719633928948,2.83275638,60879.0,60878.0,0.12422236]
[1719633931686,2.83275638,60879.0,60878.0,0.12414399]
[1719633931891,2.875896,60879.0,60878.0,0.12414399]
[1719633932093,2.92662366,60879.0,60878.0,0.12414399]
[1719633932296,2.92662366,60879.0,60878.0,0.3620928]
[1719633932496,2.92662366,60879.0,60878.0,0.51290288]
[1719633932497,0.17730866,60879.0,60878.0,0.51290288]
[1719633932783,0.126581,60879.0,60878.0,0.52290288]
[1719633933121,0.00284,60879.0,60878.0,0.52290288]
[1719633933776,0.00084,60879.0,60878.0,0.4742812]
[1719633934251,0.00184,60879.0,60878.0,0.4752812]
[1719633934721,0.00084,60879.0,60878.0,0.6477812]
[1719633934878,0.00184,60879.0,60878.0,0.6487812]
[1719633935080,0.00184,60879.0,60878.0,0.6537812]
[1719633935606,0.00184,60879.0,60878.0,0.6487812]
[1719633935817,0.458781,60879.0,60878.0,0.6447812]
[1719633936023,0.601791,60879.0,60878.0,0.6447812]
[1719633936238,0.565725,60879.0,60878.0,0.6547812]
[1719633936600,0.09664,60879.0,60878.0,0.6547812]
[1719633937562,0.09664,60879.0,60878.0,0.6447812]
[1719633937912,0.09664,60879.0,60878.0,0.6148928]
[1719633938115,0.09664,60879.0,60878.0,0.6447812]
[1719633938319,0.09664,60879.0,60878.0,0.6547812]
[1719633938520,0.09664,60879.0,60878.0,0.6148928]
[1719633938971,0.09657198,60879.0,60878.0,0.6547812]
[1719633944060,0.00277198,60879.0,60878.0,0.6547812]
[1719633945329,0.00277198,60879.0,60878.0,0.6447812]
[1719633945538,0.00277198,60879.0,60878.0,0.6547812]